Cogmind - Beta 17 @@@ ROGUE MODE // 2026.07.29 @ 02:15:49 Player: Momo Result: Destroyed by G-34 Mercenary with Small Laser Performance ------------- Evolutions (1) 500 Regions Visited (2) 400 Robots Destroyed (50) 250 Value Destroyed (1005) 1005 Prototype IDs (7) 140 Alien Tech Used (0) 0 Bonus (5334) 5334 TOTAL SCORE: 7629 Bonus ------- Prayed to X0-1V1 5000 Major X0-1V1 Interference 350 Friendly Fire -16 Cogmind --------- Core Integrity 0/200 Matter 310/700 Energy 250/250 System Corruption 7% Temperature Warm (168) Movement Rolling (215) Ox9 Location -9/Materials Parts ------- > --- POWER (1) -------- Ion Engine > --- PROPULSION (2) --- Wheel > --- UTILITY (4) ------ Huge Storage Unit Terrain Scanner Terrain Scan Processor X0-1V1's Piety Tracker > --- WEAPON (2) ------- Improved Assault Rifle Improved Assault Rifle > --- INVENTORY (25) --- Cooled Ion Engine Wheel Wheel Heat Sink Large Storage Unit Medium Matter Pod (100) Structural Scanner Transport Network Coupler Hacking Suite Improved EM Shotgun Improved EM Shotgun Improved EM Shotgun Particle Gun Improved Medium Laser Improved Medium Laser Improved Assault Rifle Improved Assault Rifle EMP Blaster Peak State ------------ > --- POWER ------------ Light Ion Engine > --- PROPULSION ------- Wheel Wheel > --- UTILITY ---------- Large Storage Unit Structural Scanner Terrain Scan Processor X0-1V1's Piety Tracker > --- WEAPON ----------- Improved Assault Rifle Improved Assault Rifle > --- INVENTORY -------- Ion Engine Wheel Heat Sink Huge Storage Unit Medium Matter Pod Transport Network Coupler Improved EM Shotgun Improved EM Shotgun Improved EM Shotgun Particle Gun Improved Medium Laser Improved Medium Laser Improved Assault Rifle Improved Assault Rifle Welding Torch [Rating: 29] Favorites ----------- Power Light Ion Engine Engine Light Ion Engine Propulsion Wheel Treads Light Treads Leg Aluminum Leg Wheel Wheel Flight Unit Improved Flight Unit Utility X0-1V1's Piety Tracker Device X0-1V1's Piety Tracker Storage Large Storage Unit Processor Terrain Scan Processor Weapon Improved Assault Rifle Energy Gun Particle Gun Ballistic Gun Improved Assault Rifle Ballistic Cannon Light Cannon Launcher Grenade Launcher Special Weapon Welding Torch Build | -11 -10 -9 ------- Run | Yrd Mat Mat Slots Evolved 2 | . . 2 Power . | . . . Propulsion . | . . . Utility 2 | . . 2 Weapon . | . . . Parts Attached 41 | 4 4 33 Power 4 | . . 4 Engine 4 | . . 4 Core . | . . . Reactor . | . . . Propulsion 10 | 2 . 8 Treads 1 | . . 1 Leg 1 | . . 1 Wheel 7 | 2 . 5 Hover . | . . . Flight 1 | . . 1 Utility 9 | . 3 6 Device 6 | . 2 4 Storage 2 | . 1 1 Processor 1 | . . 1 Hackware . | . . . Protection . | . . . Artifact . | . . . Weapon 18 | 2 1 15 Energy Gun 5 | . . 5 Energy Cannon . | . . . Ballistic Gun 7 | 2 . 5 Ballistic Cannon 3 | . . 3 Launcher 2 | . 1 1 Special Weapon 1 | . . 1 Impact Weapon . | . . . Slashing Weapon . | . . . Piercing Weapon . | . . . Special Melee Weapon . | . . . Unidentified Prototypes 5 | . 1 4 Parts Lost 16 | . 1 15 Power 3 | . . 3 Propulsion 6 | . 1 5 Utility 2 | . . 2 Weapon 5 | . . 5 Highest Loss Streak 9 | . 1 9 To Critical Strikes . | . . . Average Backups 10 | . 4 11 Power 1 | . 1 1 Propulsion . | . . . Utility 3 | . 1 3 Weapon 5 | . 1 5 Tool/Special . | . . . Unused Backups 9 | . 1 8 Power 1 | . . 1 Propulsion 2 | . . 2 Utility 4 | . 1 3 Weapon 2 | . . 2 Tool/Special . | . . . Average Slot Usage (%) 79 | . 68 82 Engine 5 | . . 7 Treads 1 | . . 2 Wheel 13 | . 19 11 Flight 2 | . . 2 Device 19 | . 16 20 Storage 9 | . 2 11 Processor 4 | . . 4 Energy Gun 1 | . . 1 Ballistic Gun 12 | . 19 11 Ballistic Cannon 6 | . . 7 Launcher 1 | . 8 . Peak Build Rating 29 | 4 17 29 Average Rating 21 | 2 14 23 On Entrance 7 | . 4 17 Avg Prop Armor Cover (%) 7 | 16 11 1 Naked Turns . | . . . Heaviest Build 94 | 3 26 94 Greatest Support 20 | 20 10 20 Greatest Overweight (x) 9 | . 2 9 Average Overweight (x) 3 | . 1 3 Largest Inventory Capacity 25 | 5 15 25 Average Capacity 17 | 5 6 19 Most Carried 18 | 2 8 18 Average Carried 10 | . 5 11 Final Capacity 25 | 5 15 25 Final Carried 18 | 2 8 18 Class Distribution -------------------- 64% | Mutant 35% | Scavenger-Mutant Dominant Class ---------------- Mutant | -10/Materials Mutant | -9/Materials Resources | -11 -10 -9 ----------- Run | Yrd Mat Mat Matter Collected 1510 | 139 122 1249 Remotely . | . . . Salvage Created 1458 | . 149 1309 Parts 87 | . 4 83 Haulers Intercepted 3 | . 1 2 Recyclers Shooed 4 | . . 4 Parts Field Recycled . | . . . Retrieved Matter . | . . . Parts Self-Destructed . | . . . Prevented . | . . . Parts Restored . | . . . Kills | -11 -10 -9 ------- Run | Yrd Mat Mat Combat Hostiles Destroyed 30 | . 3 27 Guns 11 | . 1 10 Cannons 16 | . . 16 AOE 3 | . 2 1 Classes Destroyed 10 | . 3 7 Worker 4 | . . 4 Builder 4 | . . 4 Hauler 3 | . 1 2 Recycler 5 | . 1 4 Operator 1 | . . 1 Watcher 3 | . . 3 Swarmer 9 | . . 9 Grunt 15 | . 3 12 Brawler 1 | . . 1 Sentry 5 | . . 5 Best Kill Streak 12 | . 4 12 Combat Bots Only 8 | . 2 8 Max Kills in Single Turn 2 | . 2 1 Gunslinging . | . . . Exploded 2 | . 2 1 Melee . | . . . Uniques/NPCs Destroyed . | . . . Combat | -11 -10 -9 -------- Run | Yrd Mat Mat Hostile Shots Fired 175 | . 4 171 Missed 45 | . 3 42 Hits 130 | . 1 129 Melee 4 | . . 4 Projectile 126 | . 1 125 Critical Strikes 4 | . . 4 Damage Taken 1610 | . 150 1460 Core 318 | . 13 305 Absorbed by Shields . | . . . Core Remaining (%) 95 | 100 91 . Volleys Fired 132 | . 13 119 Largest 2 | . 1 2 Hottest 95 | . 30 95 Shots Fired 229 | . 14 215 Gun 116 | . 3 113 Cannon 97 | . . 97 Launcher 12 | . 11 1 Special 4 | . . 4 Kinetic 175 | . 3 172 Thermal 40 | . . 40 Explosive 12 | . 11 1 Electromagnetic 2 | . . 2 Robot Hit Streak 14 | . 7 14 Robot Miss Streak 6 | . . 6 Penetration Max . | . . . Secondary Targets 2 | . . 2 Max Gunslinging Chain 1 | . . 1 Shots Hit Robots 148 | . 7 141 Core Hits 62 | . 7 55 Critical Kills 1 | . . 1 Critical Parts Destroyed . | . . . Critical Strikes 3 | . . 3 Destroy 1 | . . 1 Blast 2 | . . 2 Melee Attacks . | . . . Impact . | . . . Slashing . | . . . Piercing . | . . . Sneak Attacks . | . . . Combat Hostiles . | . . . Follow-up Attacks . | . . . Damage Inflicted 2839 | . 420 2419 Guns 1275 | . 37 1238 Cannons 1161 | . . 1161 Explosions 403 | . 383 20 Melee . | . . . Ramming . | . . . Kinetic 1922 | . 37 1885 Thermal 476 | . . 476 Explosive 403 | . 383 20 Electromagnetic 38 | . . 38 Impact . | . . . Slashing . | . . . Piercing . | . . . Highest Corruption 7 | . 1 7 Average Corruption 6 | . 1 6 Corruption Purged . | . . . Corruption Blocked . | . . . Effects 33 | . 1 32 Message Errors 6 | . . 6 Matter Fused 7 | . . 7 Heat Flow Errors 2 | . . 2 Energy Discharges 2 | . . 2 Parts Rejected 1 | . . 1 Data Loss (minor) 6 | . . 6 Data Loss (major) 2 | . . 2 Misfires 3 | . 1 2 Weapon Failures 4 | . . 4 Overload Shots . | . . . Overflow Damage 40 | . 10 30 Projectiles 30 | . . 30 Explosions 10 | . 10 . Melee . | . . . Knockbacks 14 | . . 14 Impact . | . . . Kinetic 12 | . . 12 Secondary 2 | . . 2 Self-Inflicted Damage 80 | . 80 . Shots 2 | . 2 . Rammed . | . . . Targets Rammed . | . . . Kicked . | . . . Crushed . | . . . Highest Temperature 255 | . 5 255 Average Temperature 65 | . 5 66 Received Heat Transfer 441 | . 6 435 Effects 1 | . . 1 Interference 1 | . . 1 Siege Activations . | . . . Martial Activations . | . . . Shielding Activations . | . . . Robots Disrupted . | . . . Combat Hostiles . | . . . Robots Corrupted . | . . . Combat Hostiles . | . . . Parts Fried . | . . . Impact Corruptions . | . . . Robots Melted . | . . . Combat Hostiles . | . . . Parts Melted 2 | . . 2 Heat Transferred 1110 | . . 1110 Parts Sabotaged . | . . . Parts Stolen . | . . . Parts Stripped . | . . . Power Chain Reactions . | . . . Alert | -11 -10 -9 ------- Run | Yrd Mat Mat Maximum Alert Level 1 | . . 1 Low Security (%) 97 | 100 100 96 Level 1 2 | . . 3 Level 2 . | . . . Level 3 . | . . . Level 4 . | . . . Level 5 . | . . . High Security . | . . . Max Security . | . . . Peak Influence 215 | . 92 215 Initial 36 | . . 36 Average 80 | . 29 91 Influence Increases 1015 | . 174 841 Destroy 0b10 Robot/C 600 | . 60 540 Destroy 0b10 Robot/NC 105 | . 10 95 Destroy Leader 124 | . 12 112 Allied During Kill 2 | . . 2 Successful Hack 29 | . 5 24 Disable Machine 30 | . 30 . Destroy Structure 65 | . 57 8 Lose Combat Pursuer 60 | . . 60 Influence Decreases 981 | . 87 894 Entered New Map 51 | . . 51 Time Decay 583 | . 77 506 Lost Part 160 | . 10 150 Lost Ally 40 | . . 40 Purge Threat 147 | . . 147 Squads Dispatched 4 | . 1 3 Investigation 3 | . 1 2 Extermination . | . . . Reinforcement 1 | . . 1 Assault . | . . . Garrison . | . . . Intercept . | . . . Searches Triggered . | . . . Construction Impeded . | . . . Haulers Reinforced . | . . . Active Scanning Responses . | . . . Cargo Convoy Interrupts . | . . . Stealth | -11 -10 -9 --------- Run | Yrd Mat Mat Distress Signals 6 | . . 6 Communications Jammed . | . . . Distress Signals . | . . . Times Spotted 50 | . 4 46 Peak Tracking Total 7 | . 3 7 Tactical Retreats 3 | . . 3 Traps | -11 -10 -9 ------- Run | Yrd Mat Mat Traps Triggered 2 | . 1 1 Indirectly . | . . . Trap Hack Attempts . | . . . Triggered . | . . . Disarmed . | . . . Reprogrammed . | . . . Reused . | . . . Traps Extracted . | . . . Installed . | . . . Triggered . | . . . Machines | -11 -10 -9 ---------- Run | Yrd Mat Mat Machines Disabled 2 | . 2 . Max in Single Turn 2 | . 2 . Machines Repaired . | . . . Machines Dismantled . | . . . Machines Sabotaged . | . . . Overloaded Fab Kills . | . . . Hacking | -11 -10 -9 --------- Run | Yrd Mat Mat Machines Accessed 10 | . 3 7 Terminals 9 | . 3 6 Fabricators . | . . . Repair Stations . | . . . Recycling Units 1 | . . 1 Scanalyzers . | . . . Garrison Access . | . . . Total Hacks 29 | . 9 20 Successful 14 | . 3 11 Failed 15 | . 6 9 Catastrophic 2 | . . 2 Database Lockouts . | . . . Manual 20 | . 10 10 Terminals 27 | . 9 18 Fabricators . | . . . Repair Stations . | . . . Recycling Units 2 | . . 2 Scanalyzers . | . . . Garrison Access . | . . . Terminal Hacks 7 | . 1 6 Robot Analysis 4 | . 1 3 Prototype ID Bank 1 | . . 1 Unreport Threat 1 | . . 1 Zone Layout 1 | . . 1 Fabricator Hacks . | . . . Repair Station Hacks . | . . . Recycling Unit Hacks 2 | . . 2 Process 1 | . . 1 Retrieve Matter 1 | . . 1 Scanalyzer . | . . . Garrison Access Hacks . | . . . Unauthorized Hacks 5 | . 2 3 Terminals 5 | . 2 3 Botnet 4 | . 2 2 Operators 1 | . . 1 Fabricators . | . . . Repair Stations . | . . . Recycling Units . | . . . Scanalyzers . | . . . Garrison Access . | . . . Data Cores Recovered . | . . . Used . | . . . Hacking Detections 9 | . 3 6 Full Trace Events 2 | . 2 . Feedback Events 1 | . 1 . Corruption 1 | . 1 . Feedback Blocked . | . . . Robot Schematics Acquired . | . . . Robots Built . | . . . Authchips . | . . . Time . | . . . Total Robot Build Rating . | . . . Part Schematics Acquired . | . . . Parts Built . | . . . Authchips . | . . . Time . | . . . Total Part Build Rating . | . . . Part Studies Acquired . | . . . Parts Repaired . | . . . Time . | . . . Parts Recycled . | . . . Recycled Matter 4 | . . 4 Retrieved Matter 4 | . . 4 Retrieved Components . | . . . Parts Scanalyzed . | . . . Part Schematics Acquired . | . . . Parts Damaged . | . . . Bothacking | -11 -10 -9 ------------ Run | Yrd Mat Mat Used RIF Installer . | . . . Robots Hacked . | . . . Non-combat . | . . . Combat . | . . . Robot Hacks Applied . | . . . Relay Couplers Released . | . . . Fabnet Peak Effective % . | . . . Robots Rewired . | . . . Allies Hacked . | . . . Hacks Repelled . | . . . Allies | -11 -10 -9 -------- Run | Yrd Mat Mat Total Allies 2 | . . 2 Largest Group 2 | . . 2 Highest-Rated Group 10 | . . 10 Highest-Rated Ally 5 | . . 5 Total Orders . | . . . Ally Attacks 13 | . . 13 Total Damage 103 | . . 103 Kills 1 | . . 1 Allies Corrupted . | . . . Allies Melted . | . . . X0-1V1 Amusement Gains 38 | . 28 10 Good Acts 9 | . 1 8 Bad Acts 4 | . 1 3 Intel | -11 -10 -9 ------- Run | Yrd Mat Mat Active Infowar (turns) 1338 | . 110 1228 Terrain 631 | . . 631 Structural 707 | . 110 597 Robot Analysis Total 4 | . 1 3 Derelict Logs Recovered . | . . . Drone Launches . | . . . Drone Recoveries . | . . . Exploration | -11 -10 -9 ------------- Run | Yrd Mat Mat Turns Passed 1790 | 30 279 1481 Spaces Moved 846 | 36 187 623 Core 173 | 23 148 2 Treads 104 | . . 104 Legs 7 | . . 7 Wheels 560 | 13 39 508 Hover . | . . . Flight 2 | . . 2 Fastest Speed 50 | 50 50 95 Average Speed 148 | 60 110 165 Slowest Speed 400 | 80 150 400 Overloaded Moves . | . . . Propulsion Burnouts . | . . . Robots Hopped . | . . . Potential Cave-ins . | . . . Cave-ins Triggered . | . . . Exploration Rate (%) 30 | 3 38 51 Regions Visited 2 Branch Regions . Pre-discovered Areas . | . . . Known Exits Taken . | . . . Unknown Exits Taken 2 | 1 1 . Scrap Searched . | . . . Spaces Dug . | . . . Terrain Destroyed 78 | . 73 5 Melee . | . . . Projectile . | . . . AOE 78 | . 73 5 Terrain Rammed . | . . . Walls Destroyed . | . . . Machines Disabled . | . . . Actions | -11 -10 -9 --------- Run | Yrd Mat Mat Total 1133 | 41 245 847 Wait 69 | . 34 35 Move 844 | 35 186 623 Hop . | . . . Pick Up 25 | 2 7 16 Fast Attach 27 | 4 2 21 Attach 9 | . . 9 Detach 6 | . . 6 Swap 13 | . 2 11 Drop 8 | . 1 7 Fire 132 | . 13 119 Melee . | . . . Ram . | . . . Kick . | . . . Crush . | . . . Escape Stasis . | . . . Rewire . | . . . Trap . | . . . Miscellaneous . | . . . Route ------- -11/Scrapyard -10/Materials (discovered 2 exits: *Mat / [*Sub]) -9/Materials (discovered 2 exits: [*Mat] / [*Sto]) History --------- Turn | Location | Event 10 | -11/Scrapyard | Discovered new exit (range 15) 31 | -11/Scrapyard | Entered Materials 67 | -10/Materials | Discovered new exit (range 4) 79 | -10/Materials | Prayed at D.C.S.S. Altar Unit 210 | -10/Materials | Energy generation permanently improved by X0-1V1 (+10; -100 max core) 295 | -10/Materials | Discovered new exit (range 9) 310 | -10/Materials | Entered another Materials area 310 | -9/Materials | Evolved 2 slots: Utility x2 331 | -9/Materials | Build established: Mutant 566 | -9/Materials | Discovered new exit (range 6) 844 | -9/Materials | Destroyed 8 combat bots 926 | -9/Materials | Core integrity fell below 50% 939 | -9/Materials | X0-1V1 sent allied S-10 Pest (x2) 969 | -9/Materials | Lost 9 parts (2p3n2u2w) 1033 | -9/Materials | EM resistance permanently improved by X0-1V1 (+10%; -100 max core) 1156 | -9/Materials | Discovered new exit (range 15) 1451 | -9/Materials | Build established: Scavenger-Mutant 1498 | -9/Materials | Core integrity fell below 20% 1504 | -9/Materials | X0-1V1 whisked you away to safety 1611 | -9/Materials | X0-1V1 foreshadows a heat wave 1791 | -9/Materials | Destroyed by G-34 Mercenary with Small Laser Last Messages --------------- 01615_ T-07 Excavator is excavating. 01622_ Acquired Hacking Suite. 01623_ T-07 Excavator is excavating. 01623_ U-05 Engineer builds a Wall. 01663_ |>:ABDKA0SWD4,9PZXUFN 01694_ System corrupted: Matter fused (-7). 01713_ XRI 3B=S:<7JYT8P7O D=F31&36> 01726_ K-01 Serf cleans the Atomic Centrifuge. 01733_ System corrupted: Imp. Assault Rifle jammed. 01736_ Y-45 Defender destroyed. 01737_ X0-1V1 thinks 0b10 needs to up its game. 01737_ ALERT: Dispatching surplus targeted Investigation squad. 01739_ Acquired 56 matter. 01761_ Acquired EMP Blaster. 01788_ System corrupted: Heat flow error (+198). 01788_ System corrupted: Imp. Assault Rifle jammed. 01791_ X0-1V1 giggles madly! Map ----- +----------------------------------------------------+ | #? ?+???+ "???????????## ##??????######### | | #?? ????## "???????????## ##??????## | | #?? #??## ????????????## ##??????## """ | | ##########!* ######### ########## """ | | ########T##+###################+########### """ | | % % % # | | % % % = % # | | %%%%% % [ % + | | ################+#########+####+####### # | | ##############* ### # ### ##+##### | | ##??????????## """##???"" # """= # # ##### | | ???? ??##= """##???"" # "Y" ## # ##??? | | ???????##=["""##???"" # ## < # ##??? | | ???????## """##??""" # ! ## # ##??? | | ##+###??????## % ##?? # !!! ## # ##??? | | #???????????## %##? ?"" # =! #### ### ##??! | | #???????????##########???" # !! #### ### ### | | #???????????#########? ??" # #### ### ### " | | #???????????#?????##?# ? ########### # " | | #??????????#????#?????? ## # + " | | #???????????#?#####?##??? ##? ?"? # ]!! # | | ??????????#???#?##?##??#?###? ??""? # ]! # " | | ???#####+########?##???#####? ?? S" # ]! # " | | ???# ##?#?###### ###? ? ? # # " | | ???# ##???### #??? "?" # + | | ???+ ##?##?## @=#?? ""? # #### | | ???# ####??## "![## "?" # #### | | ???# ##?#??## """g## # #### | | ???# ###??#?# ""[g########+## """ #### | | ???# ##?????# """ # """ ## | | ???# #????### ""g/ """ ## | | ???#+##########?#??## """ # ## | | ????????? ?? ?? ?#??# """ # ### | | ?????????"?" ??"??### """ ############ #### ### | | ???????????"????"??## " ##?######### #### ##? | | ????????????? ??"???# #?#??###!! #### ### | | ?????????????????##?# ###?####!! ####+### | | ??????????????? ???##########?####!! # % # | | ??????????????????##?##?##?###?####!! %# % % # | | ??????????????????#???###??##??####** # """ # | | ??????????????#????#????#?######?##** + """ # | | ???????????????????#????#?###??#?###### # """ # | | ????????????????#??????#?##?????####### # # | | ?????????????????????############??#### ###+#### | | ?????????????????????##?#?###?#??##?### ### #### | | ?????????????#??????#?#?#?####?##?##### ### ###? | | ???????????????????##??###?############ ### ##?# | | ??????????????????#?#???##### ##### ### ##?? | | ?????????????##??????######## ### ###? | | ???????????#?#??????#?##?##?# T ### ##?? | +----------------------------------------------------+ Best States ------------- Heat Dissipation 38 Energy Generation 20 Energy Capacity 250 Matter Stores 333 Matter Capacity 700 Sight Range 18 Terrain Scan Range 14 Terrain Scan Density 85 Resistance: EM 10 Evasion (%) 50 Recoil Reduction 1 Item Schematics ----------------- None Robot Schematics ------------------ None Fabricated ------------ Nothing Repaired ---------- Nothing Studied --------- None Alien Tech Used ----------------- None Achievements -------------- Hydra Challenges ------------ None Game ------ Seed ShockPiercingCompanion Manual? 0 Play Time 00:19:24 Cumulative 475.2 hours Start 2026.07.29 @ 01:59:05 End 2026.07.29 @ 02:15:49 Sessions 1 Manual Loads 0 Difficulty Rogue Special Mode None Game No. 248 Rogue 244 Adventurer 0 Explorer 4 Win Type - Total 26 Types 9/1/2/6/1/2/3/1/1/0 Lore% 69 Gallery% 74 Achievement% 58 Wizard Run 0 Options --------- Layout 1 ASCII 0 Keyboard 0 Movement Mouse Keybinds 0 Fullscreen 1 Font 24/Smallcaps Map View 50x35 Zoom Use 0% Tactical HUD 1 Map Filters NONE Filters NONE Steam 1 RUN: b2c964b2-7b60-424e-85af-8afd18712c33